fUSD/lending_fUSD_20250620
["ID","MTS","AMOUNT","RATE_DAILY","PERIOD"]
[366661548,1750392647140,-423.4817463,0.00026999,4]
[366661549,1750392647150,-490.0,0.00026999,4]
[366661550,1750392647160,-490.0,0.00026999,4]
[366661551,1750392647170,-490.0,0.00026999,4]
[366661552,1750392647181,-490.0,0.00026999,4]
[366661553,1750392647191,-490.0,0.00026999,4]
[366661554,1750392647201,-2020.09,0.00026999,4]
[366661555,1750392647212,-552.46229094,0.00026999,4]
[366661556,1750392647228,-536.26,0.00026999,4]
[366661557,1750392647238,-493.62,0.00026999,4]
[366661558,1750392647249,-704.07,0.00026999,4]
[366661559,1750392647259,-503.00509787,0.00026999,4]
[366661560,1750392647270,-490.0,0.00026999,4]
[366661561,1750392647280,-490.0,0.00026999,4]
[366661562,1750392647291,-809.17,0.00026999,4]
[366661563,1750392647301,-490.0,0.00026999,4]
[366661564,1750392647312,-893.68,0.00026999,4]
[366661565,1750392647323,-1764.33,0.00026999,4]
[366661566,1750392647334,-634.94,0.00026999,4]
[366661567,1750392647345,-974.74,0.00026999,4]
[366661568,1750392647356,-4335.58,0.00026999,4]
[366661569,1750392647367,-490.0,0.00026999,4]
[366661570,1750392647378,-490.0,0.00026999,4]
[366661571,1750392647390,-490.0,0.00026999,4]
[366661572,1750392647401,-1334.55,0.00026999,4]
[366661573,1750392647412,-1082.82,0.00026999,4]
[366661574,1750392647422,-2059.88,0.00026999,4]
[366661575,1750392647433,-797.36,0.00026999,4]
[366661576,1750392647445,-874.45,0.00026999,4]
[366661577,1750392647456,-490.0,0.00026999,4]
[366661578,1750392647467,-490.0,0.00026999,4]
[366661579,1750392647478,-500.84,0.00026999,4]
[366661580,1750392647489,-8591.33,0.00026999,4]
[366661581,1750392647500,-490.0,0.00026999,4]
[366661582,1750392647511,-490.0,0.00026999,4]
[366661583,1750392647522,-490.0,0.00026999,4]
[366661584,1750392647533,-490.0,0.00026999,4]
[366661585,1750392647544,-492.42254388,0.00026999,4]
[366661586,1750392647555,-490.0,0.00026999,4]
[366661587,1750392647566,-1481.42,0.00026999,4]
[366661588,1750392647577,-632.96,0.00026999,4]
[366661589,1750392647588,-490.0,0.00026999,4]
[366661590,1750392647599,-913.77,0.00026999,4]
[366661591,1750392647613,-3315.44,0.00026999,4]
[366661592,1750392647623,-3314.77,0.00026999,4]
[366661593,1750392647634,-490.0,0.00026999,4]
[366661594,1750392647645,-11716.99,0.00026999,4]
[366661595,1750392647661,-490.0,0.00026999,4]
[366661596,1750392647672,-607.59,0.00026999,4]
[366661597,1750392647683,-863.45,0.00026999,4]
[366661598,1750392647693,-498.06,0.00026999,4]
[366661599,1750392647704,-490.0,0.00026999,4]
[366661600,1750392647715,-490.0,0.00026999,4]
[366661601,1750392647726,-310.0,0.00026999,4]
[366661602,1750392647736,-497.17,0.00026999,4]
[366661603,1750392647747,-494.60133844,0.00026999,4]
[366661604,1750392647757,-699.83,0.00026999,4]
[366661605,1750392647768,-490.0,0.00026999,4]
[366661606,1750392647778,-490.0,0.00026999,4]
[366661607,1750392647789,-1243.97,0.00026999,4]
[366661608,1750392647800,-1676.53,0.00026999,4]
[366661609,1750392647811,-490.0,0.00026999,4]
[366661610,1750392647822,-691.53,0.00026999,4]
[366661611,1750392647835,-1644.68,0.00026999,4]
[366661612,1750392647845,-490.0,0.00026999,4]
[366661613,1750392647856,-490.0,0.00026999,4]
[366661614,1750392648188,-4231.54,0.00026999,4]
[366661615,1750392648220,-490.0,0.00026999,4]
[366661616,1750392648230,-1044.61,0.00026999,4]
[366661617,1750392648240,-490.0,0.00026999,4]
[366661618,1750392648250,-490.0,0.00026999,4]
[366661619,1750392648260,-698.35,0.00026999,4]
[366661620,1750392648270,-1229.35,0.00026999,4]
[366661621,1750392648281,-559.7,0.00026999,4]
[366661622,1750392648290,-490.0,0.00026999,4]
[366661623,1750392648301,-2036.88,0.00026999,4]
[366661624,1750392648311,-1203.49,0.00026999,4]
[366661625,1750392648321,-490.0,0.00026999,4]
[366661626,1750392648331,-867.1,0.00026999,4]
[366661627,1750392648341,-791.86,0.00026999,4]
[366661628,1750392648351,-490.0,0.00026999,4]
[366661629,1750392648361,-832.69835505,0.00026999,4]
[366661630,1750392648456,-142.40164495,0.00026999,4]
[366661631,1750392648466,-516.69,0.00026999,4]
[366661632,1750392648476,-490.0,0.00026999,4]
[366661633,1750392648486,-490.0,0.00026999,4]
[366661634,1750392648496,-490.0,0.00026999,4]
[366661635,1750392648506,-1341.44482642,0.00026999,4]
[366661636,1750392648523,-1010.48517358,0.00026999,4]
[366661637,1750392648533,-490.0,0.00026999,4]
[366661638,1750392648544,-490.0,0.00026999,4]
[366661639,1750392648554,-264.8376906,0.00026999,4]
[366661640,1750392650404,-201.0,0.00023391,2]
[366661641,1750392650415,-221.54079843,0.00026989,4]
[366661642,1750392650435,-268.45920157,0.00026989,4]
[366661643,1750392650445,-346.96617486,0.00026999,4]
[366661644,1750392650455,-490.0,0.00026999,4]
[366661645,1750392650464,-3301.02,0.00026999,4]
[366661646,1750392650474,-1487.89,0.00026999,4]
[366661647,1750392650484,-490.0,0.00026999,4]
[366661648,1750392650493,-490.0,0.00026999,4]
[366661649,1750392650503,-490.0,0.00026999,4]
[366661650,1750392650513,-5269.66,0.00026999,4]
[366661651,1750392650523,-490.0,0.00026999,4]
[366661652,1750392650533,-752.82,0.00026999,4]
[366661653,1750392650543,-490.0,0.00026999,4]
[366661654,1750392650553,-490.0,0.00026999,4]
[366661655,1750392650563,-2084.77,0.00026999,4]
[366661656,1750392650572,-1328.87,0.00026999,4]
[366661657,1750392650582,-490.0,0.00026999,4]
[366661658,1750392650592,-490.0,0.00026999,4]
[366661659,1750392650602,-1438.25,0.00026999,4]
[366661660,1750392650620,-490.0,0.00026999,4]
[366661661,1750392650630,-419.45002904,0.00026999,4]
[366661662,1750392650640,-865.45,0.00026999,4]
[366661663,1750392650651,-1195.22,0.00026999,4]
[366661664,1750392650660,-490.0,0.00026999,4]
[366661665,1750392650670,-490.0,0.00026999,4]
[366661666,1750392650680,-490.0,0.00026999,4]
[366661667,1750392650691,-490.0,0.00026999,4]
[366661668,1750392650702,-490.0,0.00026999,4]
[366661669,1750392650713,-490.0,0.00026999,4]
[366661670,1750392650725,-490.0,0.00026999,4]
[366661671,1750392650734,-490.0,0.00026999,4]
[366661672,1750392650745,-490.0,0.00026999,4]
[366661673,1750392650754,-1627.02,0.00026999,4]
[366661674,1750392650765,-490.0,0.00026999,4]
[366661675,1750392650775,-490.0,0.00026999,4]
[366661676,1750392650785,-490.0,0.00026999,4]
[366661677,1750392650795,-1379.52,0.00026999,4]
[366661678,1750392650806,-876.67,0.00026999,4]
[366661679,1750392650818,-490.0,0.00026999,4]
[366661680,1750392650828,-490.0,0.00026999,4]
[366661681,1750392650837,-490.0,0.00026999,4]
[366661682,1750392650847,-1873.75,0.00026999,4]
[366661683,1750392650858,-490.0,0.00026999,4]
[366661684,1750392650868,-355.35649534,0.00026999,4]
[366661685,1750392650877,-490.0,0.00026999,4]
[366661686,1750392650887,-490.0,0.00026999,4]
[366661687,1750392650896,-490.0,0.00026999,4]
[366661688,1750392650907,-997.97,0.00026999,4]
[366661689,1750392650917,-490.0,0.00026999,4]
[366661690,1750392650927,-806.58,0.00026999,4]
[366661691,1750392650937,-490.0,0.00026999,4]
[366661692,1750392650949,-490.0,0.00026999,4]
[366661693,1750392650959,-490.0,0.00026999,4]
[366661694,1750392650970,-490.0,0.00026999,4]
[366661695,1750392650981,-1737.27,0.00026999,4]
[366661696,1750392650991,-5392.06,0.00026999,4]
[366661697,1750392651003,-490.0,0.00026999,4]
[366661698,1750392651014,-490.0,0.00026999,4]
[366661699,1750392651026,-490.0,0.00026999,4]
[366661700,1750392651037,-617.49,0.00026999,4]
[366661701,1750392651049,-649.38,0.00026999,4]
[366661702,1750392651060,-633.41,0.00026999,4]
[366661703,1750392651070,-490.0,0.00026999,4]
[366661704,1750392651080,-490.0,0.00026999,4]
[366661705,1750392651091,-510.09,0.00026999,4]
[366661706,1750392651101,-490.0,0.00026999,4]
[366661707,1750392651111,-490.0,0.00026999,4]
[366661708,1750392651122,-956.14,0.00026999,4]
[366661709,1750392651132,-490.0,0.00026999,4]
[366661710,1750392651142,-490.0,0.00026999,4]
[366661711,1750392651155,-1586.81,0.00026999,4]
[366661712,1750392651165,-490.0,0.00026999,4]
[366661713,1750392651175,-549.69,0.00026999,4]
[366661714,1750392651186,-581.28030454,0.00026999,4]
[366661715,1750392651198,-5843.28,0.00026999,4]
[366661716,1750392651208,-490.0,0.00026999,4]
[366661717,1750392651219,-490.0,0.00026999,4]
[366661718,1750392651231,-490.0,0.00026999,4]
[366661719,1750392651243,-210.46040971,0.00026999,4]
[366661720,1750392651253,-490.0,0.00026999,2]
[366661721,1750392651263,-490.0,0.00026999,4]
[366661722,1750392651273,-490.0,0.00026999,4]
[366661723,1750392651283,-661.62,0.00026999,4]
[366661724,1750392651293,-491.35600213,0.00026999,4]
[366661725,1750392651303,-1730.62,0.00026999,4]
[366661726,1750392651313,-2659.18,0.00026999,4]
[366661727,1750392651323,-1186.02,0.00026999,4]
[366661728,1750392651333,-490.0,0.00026999,4]
[366661729,1750392651344,-490.0,0.00026999,4]
[366661730,1750392651354,-490.0,0.00026999,4]
[366661731,1750392651364,-490.0,0.00026999,4]
[366661732,1750392651374,-490.0,0.00026999,4]
[366661733,1750392651385,-490.0,0.00026999,4]
[366661734,1750392651395,-492.19739741,0.00026999,4]
[366661735,1750392651406,-4105.7,0.00026999,4]
[366661736,1750392651416,-2199.5,0.00026999,4]
[366661737,1750392651427,-490.0,0.00026999,4]
[366661738,1750392651438,-490.0,0.00026999,4]
[366661739,1750392651448,-503.35,0.00026999,4]
[366661740,1750392651459,-490.0,0.00026999,4]
[366661741,1750392651470,-490.0,0.00026999,4]
[366661742,1750392651480,-500.0,0.00026999,4]
[366661743,1750392651491,-4100.04,0.00026999,4]
[366661744,1750392651502,-972.71,0.00026999,4]
[366661745,1750392651514,-491.38916751,0.00026999,4]
[366661746,1750392651531,-490.0,0.00026999,4]
[366661747,1750392651542,-490.0,0.00026999,4]
[366661748,1750392651552,-490.0,0.00026999,4]
[366661749,1750392651564,-490.0,0.00026999,4]
[366661750,1750392651574,-794.44,0.00026999,4]
[366661751,1750392651585,-490.0,0.00026999,4]
[366661752,1750392651595,-490.0,0.00026999,4]
[366661753,1750392651611,-639.94,0.00026999,4]
[366661754,1750392651622,-1575.39,0.00026999,4]
[366661755,1750392651632,-493.24293935,0.00026999,4]
[366661756,1750392651642,-490.0,0.00026999,4]
[366661757,1750392651653,-1762.04,0.00026999,4]
[366661758,1750392651664,-585.62,0.00026999,4]
[366661759,1750392651674,-569.15,0.00026999,4]
[366661760,1750392651684,-13682.41,0.00026999,4]
[366661761,1750392651695,-1613.0,0.00026999,4]
[366661762,1750392651705,-490.0,0.00026999,4]
[366661763,1750392651715,-1243.61,0.00026999,4]
[366661764,1750392651726,-490.0,0.00026999,4]
[366661765,1750392651737,-490.0,0.00026999,4]
[366661766,1750392651747,-490.0,0.00026999,4]
[366661767,1750392651758,-1924.85,0.00026999,4]
[366661768,1750392651768,-490.0,0.00026999,4]
[366661769,1750392651778,-490.0,0.00026999,4]
[366661770,1750392651789,-1714.58,0.00026999,4]
[366661771,1750392651799,-490.0,0.00026999,4]
[366661772,1750392651810,-1077.46,0.00026999,4]
[366661773,1750392651820,-490.0,0.00026999,4]
[366661774,1750392651831,-490.0,0.00026999,4]
[366661775,1750392651841,-490.0,0.00026999,4]
[366661776,1750392651851,-2196.6,0.00026999,4]
[366661777,1750392651862,-1889.53,0.00026999,4]
[366661778,1750392651873,-490.0,0.00026999,4]
[366661779,1750392651883,-300.0,0.00026999,4]
[366661780,1750392651894,-491.75903557,0.00026999,4]
[366661781,1750392651905,-490.0,0.00026999,4]
[366661782,1750392651915,-490.0,0.00026999,4]
[366661783,1750392651926,-490.0,0.00026999,4]
[366661784,1750392651937,-2004.01,0.00026999,4]
[366661785,1750392651947,-1806.33,0.00026999,4]
[366661786,1750392651958,-490.0,0.00026999,4]
[366661787,1750392651970,-1685.72,0.00026999,4]
[366661788,1750392651980,-490.0,0.00026999,4]
[366661789,1750392651991,-10349.17,0.00026999,4]
[366661790,1750392652002,-490.0,0.00026999,4]
[366661791,1750392652012,-490.0,0.00026999,4]
[366661792,1750392652023,-169.43190579,0.00026999,4]
[366661793,1750392652034,-490.0,0.00026999,4]
[366661794,1750392652045,-1653.66,0.00026999,4]
[366661795,1750392652055,-984.68,0.00026999,4]
[366661796,1750392652066,-490.0,0.00026999,4]
[366661797,1750392652076,-490.0,0.00026999,4]
[366661798,1750392652088,-1934.58,0.00026999,4]
[366661799,1750392652098,-490.0,0.00026999,4]
[366661800,1750392652109,-797.76,0.00026999,4]
[366661801,1750392652119,-490.0,0.00026999,4]
[366661802,1750392652129,-1027.61,0.00026999,4]
[366661803,1750392652139,-490.0,0.00026999,4]
[366661804,1750392652149,-490.0,0.00026999,4]
[366661805,1750392652160,-490.0,0.00026999,4]
[366661806,1750392652170,-1650.11,0.00026999,4]
[366661807,1750392652181,-490.0,0.00026999,4]
[366661808,1750392652192,-979.79,0.00026999,4]
[366661809,1750392652202,-3582.22,0.00026999,4]
[366661810,1750392652214,-490.0,0.00026999,4]
[366661811,1750392652225,-491.88431834,0.00026999,4]
[366661812,1750392652236,-444.97364245,0.00027,2]
[366661813,1750392652246,-1000.0,0.00027,2]
[366661814,1750392652257,-250000.0,0.00027,2]
[366661815,1750392652268,-5000.0,0.00027,2]
[366661816,1750392652279,-643.0,0.00027013,7]
[366661817,1750392652290,-444.97364245,0.0002702,2]
[366661818,1750392652300,-444.97364245,0.0002704,2]
[366661819,1750392652311,-444.97364245,0.0002706,2]
[366661820,1750392652322,-588.35242644,0.0002706,2]
[366661821,1750392652333,-741.05765382,0.00027072,5]
[366661822,1750392652343,-444.97364245,0.0002708,2]
[366661823,1750392652354,-154.27234283,0.0002708,2]
[366661824,1750392652365,-162.75854776,0.0002708,2]
[366661825,1750392652376,-29484.8568869,0.0002708,2]
[366661826,1750392652398,-1873.75,0.00027089,4]
[366661827,1750392652412,-4100.04,0.00027089,4]
[366661828,1750392652423,-19656.5712579,0.0002709,2]
[366661829,1750392652433,-548.78,0.000271,4]
[366661830,1750392652444,-490.0,0.000271,4]
[366661831,1750392652455,-490.0,0.000271,4]
[366661832,1750392652466,-490.0,0.000271,4]
[366661833,1750392652476,-490.0,0.000271,4]
[366661834,1750392652487,-490.0,0.000271,4]
[366661835,1750392652498,-490.0,0.000271,4]
[366661836,1750392652509,-490.0,0.000271,4]
[366661837,1750392652520,-490.0,0.000271,4]
[366661838,1750392652531,-490.0,0.000271,4]
[366661839,1750392652543,-490.0,0.000271,4]
[366661840,1750392652554,-565.8,0.000271,4]
[366661841,1750392652565,-490.0,0.000271,4]
[366661842,1750392652576,-490.0,0.000271,4]
[366661843,1750392652586,-490.0,0.000271,4]
[366661844,1750392652597,-1790.59,0.000271,4]
[366661845,1750392652613,-490.0,0.000271,4]
[366661846,1750392652624,-490.0,0.000271,4]
[366661847,1750392652635,-490.0,0.000271,4]
[366661848,1750392652646,-490.0,0.000271,4]
[366661849,1750392652659,-490.0,0.000271,4]
[366661850,1750392652670,-490.0,0.000271,4]
[366661851,1750392652681,-490.0,0.000271,4]
[366661852,1750392652694,-490.0,0.000271,4]
[366661853,1750392652704,-490.0,0.000271,4]
[366661854,1750392652715,-507.85,0.000271,4]
[366661855,1750392652726,-490.0,0.000271,4]
[366661856,1750392652737,-490.0,0.000271,4]
[366661857,1750392652748,-655.86,0.000271,4]
[366661858,1750392652759,-608.23453738,0.000271,4]
[366661859,1750392652770,-594.98,0.000271,4]
[366661860,1750392652780,-490.0,0.000271,4]
[366661861,1750392652791,-490.0,0.000271,4]
[366661862,1750392652801,-490.0,0.000271,4]
[366661863,1750392652812,-490.0,0.000271,4]
[366661864,1750392652823,-490.0,0.000271,4]
[366661865,1750392652833,-490.0,0.000271,4]
[366661866,1750392652843,-490.0,0.000271,4]
[366661867,1750392652854,-490.0,0.000271,4]
[366661868,1750392652864,-490.0,0.000271,4]
[366661869,1750392652875,-490.0,0.000271,4]
[366661870,1750392652885,-490.0,0.000271,4]
[366661871,1750392652896,-490.0,0.000271,4]
[366661872,1750392652906,-490.0,0.000271,4]
[366661873,1750392652917,-490.0,0.000271,4]
[366661874,1750392652928,-490.0,0.000271,4]
[366661875,1750392652939,-612.5,0.000271,4]
[366661876,1750392652949,-490.0,0.000271,4]
[366661877,1750392652961,-595.01,0.000271,4]
[366661878,1750392652972,-490.0,0.000271,4]
[366661879,1750392652983,-266.63262855,0.000271,4]
[366661880,1750392652994,-490.0,0.000271,4]
[366661881,1750392653005,-490.0,0.000271,4]
[366661882,1750392653016,-635.65657936,0.000271,4]
[366661883,1750392653026,-490.0,0.000271,4]
[366661884,1750392653037,-490.0,0.000271,4]
[366661885,1750392653047,-610.5,0.000271,4]
[366661886,1750392653058,-490.0,0.000271,4]
[366661887,1750392653069,-275.36855316,0.000271,4]
[366661888,1750392653081,-490.0,0.000271,4]
[366661889,1750392653092,-490.0,0.000271,4]
[366661890,1750392653102,-490.0,0.000271,4]
[366661891,1750392653113,-490.0,0.000271,4]
[366661892,1750392653124,-490.0,0.000271,4]
[366661893,1750392653135,-490.0,0.000271,4]
[366661894,1750392653146,-490.0,0.000271,4]
[366661895,1750392653158,-490.0,0.000271,4]
[366661896,1750392653169,-1277.36,0.000271,4]
[366661897,1750392653180,-361.34702431,0.000271,4]
[366661898,1750392653191,-490.0,0.000271,4]
[366661899,1750392653202,-490.0,0.000271,4]
[366661900,1750392653214,-490.0,0.000271,4]
[366661901,1750392653225,-490.0,0.000271,4]
[366661902,1750392653236,-490.0,0.000271,4]
[366661903,1750392653247,-1180.06,0.000271,4]
[366661904,1750392653257,-490.0,0.000271,4]
[366661905,1750392653267,-616.36,0.000271,4]
[366661906,1750392653279,-490.0,0.000271,4]
[366661907,1750392653290,-5000.0,0.000271,4]
[366661908,1750392653301,-490.0,0.000271,4]
[366661909,1750392653312,-490.0,0.000271,4]
[366661910,1750392653323,-558.57,0.000271,4]
[366661911,1750392653333,-490.0,0.000271,4]
[366661912,1750392653344,-490.0,0.000271,4]
[366661913,1750392653354,-490.0,0.000271,4]
[366661914,1750392653366,-519.79,0.000271,4]
[366661915,1750392653377,-490.0,0.000271,4]
[366661916,1750392653388,-490.0,0.000271,4]
[366661917,1750392653400,-490.0,0.000271,4]
[366661918,1750392653411,-652.69,0.000271,4]
[366661919,1750392653422,-490.0,0.000271,4]
[366661920,1750392653432,-161.58432282,0.000271,4]
[366661921,1750392653443,-490.0,0.000271,4]
[366661922,1750392653455,-490.0,0.000271,4]
[366661923,1750392653467,-490.0,0.000271,4]
[366661924,1750392653478,-490.0,0.000271,4]
[366661925,1750392653489,-490.0,0.000271,4]
[366661926,1750392653500,-490.0,0.000271,4]
[366661927,1750392653510,-490.0,0.000271,4]
[366661928,1750392653521,-490.0,0.000271,4]
[366661929,1750392653532,-490.0,0.000271,4]
[366661930,1750392653542,-542.56,0.000271,4]
[366661931,1750392653553,-490.0,0.000271,4]
[366661932,1750392653564,-490.0,0.000271,4]
[366661933,1750392653574,-490.0,0.000271,4]
[366661934,1750392653584,-490.0,0.000271,4]
[366661935,1750392653595,-490.0,0.000271,4]
[366661936,1750392653607,-490.0,0.000271,4]
[366661937,1750392653618,-490.0,0.000271,4]
[366661938,1750392653628,-490.0,0.000271,4]
[366661939,1750392653638,-490.0,0.000271,4]
[366661940,1750392653650,-490.0,0.000271,4]
[366661941,1750392653662,-490.0,0.000271,4]
[366661942,1750392653672,-490.0,0.000271,4]
[366661943,1750392653683,-490.0,0.000271,4]
[366661944,1750392653693,-490.0,0.000271,4]
[366661945,1750392653704,-490.0,0.000271,4]
[366661946,1750392653715,-501.42535426,0.000271,4]
[366661947,1750392653725,-490.0,0.000271,4]
[366661948,1750392653736,-151.92,0.000271,2]
[366661949,1750392653747,-1344.39355248,0.00027107,16]
[366661950,1750392653757,-196.77299689,0.00027113,2]
[366661951,1750392653768,-7206.413036,0.00027123,7]
[366661952,1750392653779,-7206.413036,0.00027123,7]
[366661953,1750392653789,-834.11677829,0.00027123,7]
[366661954,1750392653799,-1000.0,0.00027123,7]
[366661955,1750392653809,-1000.0,0.00027123,7]
[366661956,1750392653820,-1000.0,0.00027123,7]
[366661957,1750392653831,-1000.0,0.00027123,7]
[366661958,1750392653842,-1000.0,0.00027123,7]
[366661959,1750392653852,-1000.0,0.00027123,7]
[366661960,1750392653862,-1000.0,0.00027123,7]
[366661961,1750392653872,-1000.0,0.00027123,7]
[366661962,1750392653883,-1000.0,0.00027123,7]
[366661963,1750392653894,-1000.0,0.00027123,7]
[366661964,1750392653905,-1000.0,0.00027123,7]
[366661965,1750392653916,-1000.0,0.00027123,7]
[366661966,1750392653926,-1000.0,0.00027123,7]
[366661967,1750392653937,-1000.0,0.00027123,7]
[366661968,1750392653949,-1000.0,0.00027123,7]
[366661969,1750392653960,-1000.0,0.00027123,7]
[366661970,1750392653971,-1000.0,0.00027123,7]
[366661971,1750392653981,-1000.0,0.00027123,7]
[366661972,1750392653991,-1000.0,0.00027123,7]
[366661973,1750392654002,-1000.0,0.00027123,7]
[366661974,1750392654013,-1000.0,0.00027123,7]
[366661975,1750392654023,-1000.0,0.00027123,7]
[366661976,1750392654034,-1000.0,0.00027123,7]
[366661977,1750392654044,-1000.0,0.00027123,7]
[366661978,1750392654054,-1000.0,0.00027123,7]
[366661979,1750392654065,-1000.0,0.00027123,7]
[366661980,1750392654075,-1000.0,0.00027123,7]
[366661981,1750392654086,-1000.0,0.00027123,7]
[366661982,1750392654098,-1000.0,0.00027123,7]
[366661983,1750392654323,-1000.0,0.00027123,7]
[366661984,1750392654334,-1000.0,0.00027123,7]
[366661985,1750392654344,-1000.0,0.00027123,7]
[366661986,1750392654354,-1000.0,0.00027123,7]
[366661987,1750392654363,-1000.0,0.00027123,7]
[366661988,1750392654373,-1000.0,0.00027123,7]
[366661989,1750392654383,-1000.0,0.00027123,7]
[366661990,1750392654394,-1000.0,0.00027123,7]
[366661991,1750392654404,-1000.0,0.00027123,7]
[366661992,1750392654414,-1000.0,0.00027123,7]
[366661993,1750392654424,-1000.0,0.00027123,7]
[366661994,1750392654435,-1000.0,0.00027123,7]
[366661995,1750392654445,-1000.0,0.00027123,7]
[366661996,1750392654455,-1000.0,0.00027123,7]
[366661997,1750392654465,-1000.0,0.00027123,7]
[366661998,1750392654475,-502.0,0.00027123,7]
[366661999,1750392654485,-515.61357769,0.00027129,2]
[366662000,1750392654495,-533.35666593,0.00027138,4]
[366662001,1750392654505,-1873.75,0.00027148,4]
[366662002,1750392654515,-4100.04,0.00027148,4]
[366662003,1750392654526,-151.0,0.00027149,7]
[366662004,1750392654536,-151.0,0.00027149,7]
[366662005,1750392654546,-7206.413036,0.00027149,7]
[366662006,1750392654556,-151.0,0.00027151,7]
[366662007,1750392654567,-151.0,0.00027151,7]
[366662008,1750392654577,-151.0,0.00027151,7]
[366662009,1750392654588,-490.0,0.00027158,4]
[366662010,1750392654599,-490.0,0.00027158,4]
[366662011,1750392654613,-490.0,0.00027158,4]
[366662012,1750392654623,-490.0,0.00027158,4]
[366662013,1750392654635,-490.0,0.00027158,4]
[366662014,1750392654646,-490.0,0.00027158,4]
[366662015,1750392654657,-490.0,0.00027158,4]
[366662016,1750392654667,-490.0,0.00027158,4]
[366662017,1750392654677,-508.65,0.00027158,4]
[366662018,1750392654688,-490.0,0.00027158,4]
[366662019,1750392654699,-490.0,0.00027158,4]
[366662020,1750392654710,-1873.75,0.00027158,4]
[366662021,1750392654719,-4100.04,0.00027158,4]
[366662022,1750392654730,-1860.0,0.00027159,2]
[366662023,1750392654740,-490.0,0.00027159,4]
[366662024,1750392654750,-490.0,0.00027159,4]
[366662025,1750392654759,-165.679303,0.00027159,4]
[366662026,1750392654769,-151.0,0.00027159,7]
[366662027,1750392654778,-502.461382,0.00027159,7]
[366662028,1750392654788,-502.461382,0.00027159,7]
[366662029,1750392654798,-730.634615,0.00027159,7]
[366662030,1750392654808,-730.634615,0.00027159,7]
[366662031,1750392654818,-490.0,0.00027159,4]
[366662032,1750392654828,-1706.64,0.00027159,4]
[366662033,1750392654837,-481.860581,0.00027159,7]
[366662034,1750392654847,-481.860581,0.00027159,7]
[366662035,1750392654857,-1571.98,0.00027159,4]
[366662036,1750392654867,-490.0,0.00027159,4]
[366662037,1750392654877,-490.0,0.00027159,4]
[366662038,1750392654887,-615.38,0.00027159,4]
[366662039,1750392654897,-1488.05,0.00027159,4]
[366662040,1750392654908,-151.0,0.00027159,7]
[366662041,1750392654918,-2044.57,0.00027159,4]
[366662042,1750392654928,-490.0,0.00027159,4]
[366662043,1750392654937,-490.0,0.00027159,4]
[366662044,1750392654947,-899.45,0.00027159,4]
[366662045,1750392654958,-490.0,0.00027159,4]
[366662046,1750392654968,-660.92,0.00027159,4]
[366662047,1750392654977,-959.05,0.00027159,4]